[Event "44th Chess Olympiad Open 2022"]
[Site "Chennai"]
[Date "2022.08.02"]
[Round "5.19"]
[White "Tristan, Leonardo"]
[Black "Valderrama Quiceno, Esteban Alb"]
[Result "1/2-1/2"]
[WhiteElo "2558"]
[BlackElo "2436"]
[Annotator "RC"]
[PlyCount "84"]
[EventDate "2022.??.??"]
[TimeControl "60"]

1. d4 {[%emt 0:00:04]} Nf6 {[%emt 0:01:19]} 2. c4 {[%emt 0:00:09]} e6 {[%emt 0:
00:00]} 3. Nc3 {[%emt 0:00:08]} Bb4 {[%emt 0:01:11]} 4. e3 {[%emt 0:00:10]} O-O
{[%emt 0:01:18]} 5. Bd2 {[%emt 0:00:08]} c5 {[%emt 0:04:16]} 6. a3 {[%emt 0:00:
00]} Bxc3 {[%emt 0:08:14]} 7. Bxc3 {[%emt 0:00:05]} cxd4 {[%emt 0:01:55]} 8.
Qxd4 {[%emt 0:09:15]} d5 {[%emt 0:05:06]} 9. cxd5 {[%emt 0:05:17]} Qxd5 {
[%emt 0:02:04]} 10. Qh4 {[%emt 0:06:36]} Nbd7 {[%emt 0:02:12]} 11. Rd1 {
[%emt 0:19:06]} Qe4 {[%emt 0:12:26]} 12. Qg3 {[%emt 0:00:16]} Qg6 {[%emt 0:00:
00]} 13. Bd3 {[%emt 0:01:25]} Qxg3 {[%emt 0:04:29]} 14. hxg3 {[%emt 0:00:04]}
h6 {[%emt 0:01:22]} 15. Nf3 {[%emt 0:02:53]} b6 {[%emt 0:00:50]} 16. Bb5 {
[%emt 0:15:05]} a6 {[%emt 0:15:36]} 17. Bxd7 {[%emt 0:08:53]} Nxd7 {[%emt 0:00:
00]} 18. Rd6 {[%emt 0:00:25]} Re8 {[%emt 0:09:31]} 19. Rh4 {[%emt 0:01:56]} b5
{[%emt 0:03:16]} 20. a4 {[%emt 0:13:28]} bxa4 {[%emt 0:04:51]} 21. Rxa4 {
[%emt 0:00:31]} f6 {[%emt 0:00:05]} 22. Rc4 {[%emt 0:01:14]} Nf8 {[%emt 0:00:
00]} 23. Rcc6 {[%emt 0:02:37]} e5 {[%emt 0:00:42]} 24. Nd2 {[%emt 0:00:11]} Re6
{[%emt 0:08:39]} 25. Nc4 {[%emt 0:02:54]} Rxd6 {[%emt 0:01:18]} 26. Nxd6 {
[%emt 0:00:06]} Be6 {[%emt 0:00:51]} 27. e4 {[%emt 0:00:12]} a5 {[%emt 0:00:40]
} 28. Nb7 {[%emt 0:03:00]} a4 {[%emt 0:01:33]} 29. Nc5 {[%emt 0:00:10]} Bf7 {
[%emt 0:06:52]} 30. Bb4 {[%emt 0:00:23]} Be8 {[%emt 0:00:31]} 31. Rc7 {[%emt 0:
00:00]} h5 {[%emt 0:00:35]} 32. Ba3 {[%emt 0:00:43]} Bf7 {[%emt 0:00:09]} 33.
Re7 {[%emt 0:03:05]} Ng6 {[%emt 0:00:05]} 34. Rb7 {[%emt 0:00:22]} h4 {[%emt 0:
00:00]} 35. gxh4 {[%emt 0:00:15]} Nxh4 {[%emt 0:00:00]} 36. Kf1 {[%emt 0:00:08]
} Rd8 {[%emt 0:00:30]} 37. Rd7 {[%emt 0:02:42]} Bc4+ {[%emt 0:00:39]} 38. Kg1 {
[%emt 0:00:05]} Rxd7 {[%emt 0:00:17]} 39. Nxd7 {[%emt 0:00:04]} Bb5 {[%emt 0:
00:00]} 40. Nc5 {[%emt 0:00:10]} Ng6 {[%emt 0:00:14]} 41. g3 {[%emt 0:31:04]}
Nf8 {[%emt 0:30:26]} 42. f3 {[%emt 0:02:21]} Nd7 {[%emt 0:00:27]} 1/2-1/2

[Event "44th Chess Olympiad Open 2022"]
[Site "Chennai"]
[Date "2022.08.02"]
[Round "5.19"]
[White "Perez Ponsa, Federico"]
[Black "Cardoso Cardoso, Jose Gabriel"]
[Result "1/2-1/2"]
[WhiteElo "2554"]
[BlackElo "2493"]
[Annotator "TA"]
[PlyCount "101"]
[EventDate "2022.??.??"]
[TimeControl "60"]

{[%evp 9,101,2,22,14,24,20,20,31,15,6,19,8,25,29,29,24,28,22,27,-5,-3,-11,0,0,
-8,0,0,-43,-41,-90,-109,-180,-180,-172,-180,-162,-137,-163,-159,-131,-75,-76,
-76,-78,-78,-80,-89,-80,-88,-80,-54,-56,-56,-62,-62,-102,-102,-102,-102,-102,
-83,-83,-85,-85,-85,-83,-58,-58,-25,-108,-101,-96,-89,-108,-77,-101,-77,-133,
-133,-158,-158,-172,-158,-172,-158,-158,-158,-158,-158,-158,-158,-158,0,-158]} 
1. e4 {[%emt 0:00:03]} c5 {[%emt 0:00:16]} 2. Nf3 {[%emt 0:00:06]} d6 {[%emt 0:
00:00]} 3. Bb5+ {[%emt 0:00:26]} Nd7 {[%emt 0:01:03]} 4. c4 {[%emt 0:00:39]}
Ngf6 {[%emt 0:00:34]} 5. Nc3 {[%emt 0:00:15]} a6 {[%emt 0:02:57]} 6. Ba4 {
[%emt 0:00:13] B51: Sicilian: Moscow Variation (3 Bb5+) without 3...Bd7.} e6 {
[%emt 0:00:27]} 7. O-O {[%emt 0:02:20]} Be7 {[%emt 0:00:09]} 8. d4 {[%emt 0:00:
00]} cxd4 {[%emt 0:00:56]} 9. Nxd4 {[%emt 0:00:06]} O-O {[%emt 0:01:57]} 10.
Kh1 {[%emt 0:02:38]} Qc7 {[%emt 0:09:40]} 11. Qe2 {[%emt 0:01:01]} Ne5 {
[%emt 0:18:53]} 12. Bb3 {[%emt 0:00:59]} Nc6 {[%emt 0:06:53]} 13. Nxc6 {
[%emt 0:10:40]} Qxc6 {[%emt 0:00:08] [#]} 14. f4 $146 {[%emt 0:00:27]} ({
Predecessor:} 14. Bg5 h6 15. Bh4 Qc7 16. Rad1 Re8 17. Bc2 e5 18. Ba4 Rf8 19.
Bxf6 Bxf6 20. Nd5 {½-½ (40) Iljiushenok,I (2519)-Mendonca,L (2418) Moscow
2020}) 14... b5 {[%emt 0:10:44]} 15. e5 {[%emt 0:04:32]} dxe5 {[%emt 0:01:48]}
16. fxe5 {[%emt 0:00:06]} Nd7 {[%emt 0:00:06][%cal Yf6d7,Yd7c5,Yc5d3]} 17. Bf4
{[%emt 0:34:53]} Nc5 {[%emt 0:07:30]} 18. Bc2 {[%emt 0:10:00] aiming for b4.} (
18. Qg4 $5 {[%cal Rf4h6]}) 18... bxc4 $1 {[%emt 0:01:33]} ({Much less strong is
} 18... Bb7 19. cxb5 axb5 20. Nxb5 $16) 19. Qg4 {[%emt 0:03:59]} ({Don't play} 
19. Qh5 Nd3 20. Bxd3 cxd3 $19) (19. Nb1 $1 $15) 19... Bb7 $1 $17 {[%emt 0:07:
21]} 20. Rf3 {[%emt 0:02:20]} (20. Rae1 $17) 20... f5 $19 {[%emt 0:00:00]} 21.
exf6 {[%emt 0:01:03]} Bxf6 {[%emt 0:00:28][%cal Yc5d3]} 22. Raf1 {[%emt 0:05:
46] Strongly threatening Be3.} Nd3 $1 {[%emt 0:02:13] And now ... Qd7 would
win.} 23. Bg3 {[%emt 0:06:06]} Bxc3 {[%emt 0:10:55]} 24. bxc3 {[%emt 0:00:15]}
Qe4 {[%emt 0:00:26]} ({Black should try} 24... Rf5 25. Bd1 Raf8) 25. Rxf8+ {
[%emt 0:07:36]} Rxf8 {[%emt 0:00:05]} 26. Rxf8+ {[%emt 0:00:46]} Kxf8 {[%emt 0:
00:05][%csl Gb7][%cal Re4g2,Yg8f8,Yf8f7,Yf7e6]} 27. Qxe4 {[%emt 0:00:07]} Bxe4
$17 {[%emt 0:00:03] Endgame KBB-KBN} 28. Bd6+ {[%emt 0:02:33]} Kf7 {[%emt 0:00:
24]} 29. Kg1 {[%emt 0:00:41]} Bd5 {[%emt 0:00:00]} 30. Kf1 {[%emt 0:02:22]
Prevents Ne1.} e5 {[%emt 0:00:59][%cal Ye6e5,Ye5e4]} 31. g3 {[%emt 0:00:44]}
Bf3 {[%emt 0:00:34] Inhibits Bd1.} 32. Bxd3 {[%emt 0:01:41]} cxd3 $15 {[%emt 0:
00:06] KB-KB} 33. Ke1 {[%emt 0:00:02]} Ke6 {[%emt 0:01:33]} 34. Bf8 {[%emt 0:
00:17]} g6 {[%emt 0:01:17]} 35. Kd2 {[%emt 0:00:09]} e4 {[%emt 0:01:24]} 36. c4
{[%emt 0:01:27] [#]} Kf5 $1 {[%emt 0:03:22]} 37. Bd6 {[%emt 0:00:32]} Kg4 {
[%emt 0:00:42]} 38. h4 {[%emt 0:00:00]} Kf5 {[%emt 0:01:36]} 39. Ke3 {[%emt 0:
00:22] [#]} (39. Bf4 $11 {keeps the balance.}) 39... Bd1 $1 $17 {[%emt 0:00:10]
} 40. Bc7 {[%emt 0:01:10]} Ba4 {[%emt 0:00:32]} 41. Bd6 {[%emt 0:06:32]} Bc6 {
[%emt 0:01:42]} 42. Bc7 {[%emt 0:04:00]} Bd7 {[%emt 0:00:09]} 43. a3 {[%emt 0:
01:28]} (43. Ba5 $142) 43... Be6 {[%emt 0:00:15]} 44. a4 {[%emt 0:03:07]} Bxc4
{[%emt 0:00:10]} 45. a5 {[%emt 0:00:04]} Kg4 {[%emt 0:00:58]} 46. Bd6 {[%emt 0:
00:43]} Bd5 {[%emt 0:00:00]} 47. Bf4 {[%emt 0:00:37]} Bc6 {[%emt 0:00:38]} 48.
Kf2 {[%emt 0:00:28]} Kh3 {[%emt 0:01:33]} 49. Bd2 {[%emt 0:00:22]} Bb7 {
[%emt 0:01:10]} 50. Be3 {[%emt 0:00:09]} Bc6 {[%emt 0:00:03]} 51. Bd2 {[%emt 0:
00:03] Weighted Error Value: White=0.14 (very precise) /Black=0.09 (flawless)}
1/2-1/2

[Event "44th Chess Olympiad Open 2022"]
[Site "Chennai"]
[Date "2022.08.02"]
[Round "5.19"]
[White "Sanchez, Sebastian Felipe"]
[Black "Krysa, Leandro"]
[Result "1/2-1/2"]
[WhiteElo "2440"]
[BlackElo "2515"]
[Annotator "RC"]
[PlyCount "72"]
[EventDate "2022.??.??"]
[TimeControl "60"]

1. c4 {[%emt 0:00:03]} e5 {[%emt 0:01:08]} 2. Nc3 {[%emt 0:00:15]} Bb4 {
[%emt 0:00:22]} 3. Nd5 {[%emt 0:01:21]} a5 {[%emt 0:00:55]} 4. a3 {[%emt 0:00:
00]} Bc5 {[%emt 0:00:26]} 5. e3 {[%emt 0:00:05]} d6 {[%emt 0:05:49]} 6. d4 {
[%emt 0:06:51]} Ba7 {[%emt 0:00:20]} 7. Nf3 {[%emt 0:05:32]} Nd7 {[%emt 0:00:
00]} 8. b4 {[%emt 0:09:09]} c6 {[%emt 0:02:55]} 9. Nc3 {[%emt 0:00:15]} Ngf6 {
[%emt 0:00:55]} 10. Bb2 {[%emt 0:04:20]} O-O {[%emt 0:02:29]} 11. Be2 {[%emt 0:
00:00]} Bb8 {[%emt 0:02:05]} 12. O-O {[%emt 0:02:19]} e4 {[%emt 0:05:48]} 13.
Nd2 {[%emt 0:00:22]} d5 {[%emt 0:00:13]} 14. b5 {[%emt 0:11:09]} Re8 {[%emt 0:
00:00]} 15. a4 {[%emt 0:02:05]} Nf8 {[%emt 0:01:32]} 16. Ba3 {[%emt 0:01:06]}
Qc7 {[%emt 0:05:48]} 17. g3 {[%emt 0:00:36]} Bh3 {[%emt 0:08:42]} 18. Re1 {
[%emt 0:00:05]} Qc8 {[%emt 0:01:39]} 19. Qc2 {[%emt 0:17:28]} Qf5 {[%emt 0:00:
00]} 20. Bxf8 {[%emt 0:00:14]} Rxf8 {[%emt 0:02:42]} 21. bxc6 {[%emt 0:02:39]}
bxc6 {[%emt 0:00:46]} 22. f3 {[%emt 0:00:25]} Qg6 {[%emt 0:04:28]} 23. Kf2 {
[%emt 0:05:27]} Re8 {[%emt 0:10:25]} 24. fxe4 {[%emt 0:00:54]} dxe4 {[%emt 0:
00:00]} 25. Rab1 {[%emt 0:05:16]} h5 {[%emt 0:02:37]} 26. Rg1 {[%emt 0:01:29]}
h4 {[%emt 0:07:19]} 27. Nf1 {[%emt 0:00:10]} c5 {[%emt 0:01:06]} 28. dxc5 {
[%emt 0:07:45]} Qf5+ {[%emt 0:04:24]} 29. Ke1 {[%emt 0:00:26]} hxg3 {[%emt 0:
00:00]} 30. Nxg3 {[%emt 0:00:19]} Qxc5 {[%emt 0:01:07]} 31. Ngxe4 {[%emt 0:00:
00]} Qe7 {[%emt 0:01:51]} 32. Bf3 {[%emt 0:01:19]} Ra6 {[%emt 0:00:35]} 33. Rb7
{[%emt 0:00:29]} Qa3 {[%emt 0:01:11]} 34. Rb3 {[%emt 0:00:28]} Qe7 {[%emt 0:00:
00]} 35. Rb7 {[%emt 0:00:04]} Qa3 {[%emt 0:01:10]} 36. Rb3 {[%emt 0:00:21]} Qe7
{[%emt 0:01:04]} 1/2-1/2

[Event "44th Chess Olympiad Open 2022"]
[Site "Chennai"]
[Date "2022.08.02"]
[Round "5.19"]
[White "Arenas, David"]
[Black "Flores, Diego"]
[Result "1/2-1/2"]
[WhiteElo "2426"]
[BlackElo "2528"]
[Annotator "RC"]
[PlyCount "98"]
[EventDate "2022.??.??"]
[TimeControl "60"]

1. e4 {[%emt 0:00:03]} e5 {[%emt 0:01:17]} 2. Nf3 {[%emt 0:00:10]} Nc6 {
[%emt 0:00:07]} 3. Bc4 {[%emt 0:00:11]} Bc5 {[%emt 0:00:13]} 4. O-O {[%emt 0:
00:00]} Nf6 {[%emt 0:00:33]} 5. d3 {[%emt 0:00:05]} d6 {[%emt 0:01:31]} 6. c3 {
[%emt 0:00:20]} h6 {[%emt 0:00:52]} 7. a4 {[%emt 0:00:53]} a6 {[%emt 0:01:03]}
8. Re1 {[%emt 0:00:20]} Ba7 {[%emt 0:01:50]} 9. Nbd2 {[%emt 0:00:37]} O-O {
[%emt 0:07:17]} 10. h3 {[%emt 0:00:10]} Be6 {[%emt 0:01:18]} 11. Bxe6 {[%emt 0:
00:00]} fxe6 {[%emt 0:00:21]} 12. Nf1 {[%emt 0:02:43]} Nh5 {[%emt 0:02:19]} 13.
Be3 {[%emt 0:06:02]} Nf4 {[%emt 0:02:22]} 14. Bxa7 {[%emt 0:17:33]} Rxa7 {
[%emt 0:00:20]} 15. Kh2 {[%emt 0:04:33]} Qf6 {[%emt 0:07:35]} 16. d4 {[%emt 0:
00:00]} exd4 {[%emt 0:21:09]} 17. cxd4 {[%emt 0:00:06]} e5 {[%emt 0:00:05]} 18.
d5 {[%emt 0:12:51]} Nb4 {[%emt 0:03:02]} 19. a5 {[%emt 0:06:17]} Kh8 {[%emt 0:
00:00]} 20. Re3 {[%emt 0:01:42]} c6 {[%emt 0:04:12]} 21. Ra4 {[%emt 0:03:00]}
c5 {[%emt 0:01:01]} 22. Raa3 {[%emt 0:00:03]} Raa8 {[%emt 0:05:01]} 23. N1d2 {
[%emt 0:00:23]} Rf7 {[%emt 0:01:03]} 24. Ne1 {[%emt 0:03:27]} Raf8 {[%emt 0:00:
00]} 25. g3 {[%emt 0:03:02]} g5 {[%emt 0:06:43]} 26. Rf3 {[%emt 0:07:58]} Qg6 {
[%emt 0:00:14]} 27. gxf4 {[%emt 0:01:58]} gxf4 {[%emt 0:00:04]} 28. Qe2 {
[%emt 0:00:41]} Rg8 {[%emt 0:00:26]} 29. Qf1 {[%emt 0:00:09]} Rfg7 {[%emt 0:00:
00]} 30. Rfc3 {[%emt 0:00:52]} Qh5 {[%emt 0:03:33]} 31. Ndf3 {[%emt 0:00:30]}
Qg6 {[%emt 0:00:33]} 32. Qc4 {[%emt 0:01:14]} Qh5 {[%emt 0:00:32]} 33. Qf1 {
[%emt 0:00:08]} Qg6 {[%emt 0:00:17]} 34. Qc4 {[%emt 0:01:16]} Qh5 {[%emt 0:00:
00]} 35. Ra1 {[%emt 0:00:37]} Qg6 {[%emt 0:02:05]} 36. Ra4 {[%emt 0:00:39]} Qe8
{[%emt 0:01:48]} 37. Rxb4 {[%emt 0:00:19]} cxb4 {[%emt 0:00:05]} 38. Qxb4 {
[%emt 0:00:02]} Qg6 {[%emt 0:01:03]} 39. Qc4 {[%emt 0:00:58]} Qe8 {[%emt 0:00:
00]} 40. Qb4 {[%emt 0:00:09]} Qg6 {[%emt 0:01:40]} 41. Qa4 {[%emt 0:04:20]} Qf7
{[%emt 0:03:09]} 42. Qc2 {[%emt 0:07:33]} Qd7 {[%emt 0:01:27]} 43. Qe2 {
[%emt 0:00:52]} Qe7 {[%emt 0:02:52]} 44. Qc2 {[%emt 0:06:52]} Qd7 {[%emt 0:00:
00]} 45. Qb3 {[%emt 0:01:53]} Rg6 {[%emt 0:01:34]} 46. Qc4 {[%emt 0:02:20]} Qg7
{[%emt 0:01:07]} 47. Qf1 {[%emt 0:00:06]} Qe7 {[%emt 0:00:24]} 48. Qc4 {
[%emt 0:01:44]} Qg7 {[%emt 0:00:57]} 49. Qf1 {[%emt 0:00:09]} Qe7 {[%emt 0:00:
00]} 1/2-1/2

[Event "44th Chess Olympiad Open 2022"]
[Site "Chennai"]
[Date "2022.08.02"]
[Round "5.20"]
[White "Berg, Emanuel"]
[Black "Bersamina, Paulo"]
[Result "1/2-1/2"]
[WhiteElo "2533"]
[BlackElo "2429"]
[Annotator "RC"]
[PlyCount "68"]
[EventDate "2022.??.??"]
[TimeControl "60"]

1. e4 {[%emt 0:00:03]} e5 {[%emt 0:00:05]} 2. Nf3 {[%emt 0:00:07]} Nc6 {
[%emt 0:00:05]} 3. d4 {[%emt 0:00:07]} exd4 {[%emt 0:00:07]} 4. Nxd4 {[%emt 0:
00:00]} Nf6 {[%emt 0:00:05]} 5. Nc3 {[%emt 0:00:07]} Nxe4 {[%emt 0:00:50]} 6.
Nxc6 {[%emt 0:05:55]} Nxc3 {[%emt 0:00:07]} 7. Nxd8 {[%emt 0:00:09]} Nxd1 {
[%emt 0:00:06]} 8. Nxf7 {[%emt 0:00:06]} Kxf7 {[%emt 0:00:14]} 9. Bc4+ {
[%emt 0:00:13]} Kf6 {[%emt 0:00:08]} 10. Kxd1 {[%emt 0:00:09]} c6 {[%emt 0:00:
00]} 11. Be3 {[%emt 0:02:46]} d5 {[%emt 0:00:33]} 12. Bd3 {[%emt 0:01:31]} Bd6
{[%emt 0:00:59]} 13. h4 {[%emt 0:12:29]} h5 {[%emt 0:11:58]} 14. Kd2 {[%emt 0:
00:00]} Kf7 {[%emt 0:03:22]} 15. Rae1 {[%emt 0:30:57]} Bd7 {[%emt 0:02:42]} 16.
c3 {[%emt 0:07:41]} a6 {[%emt 0:07:36]} 17. Kc2 {[%emt 0:04:43]} Rhe8 {[%emt 0:
00:00]} 18. Bg5 {[%emt 0:01:30]} g6 {[%emt 0:02:26]} 19. Kd2 {[%emt 0:03:49]}
Rxe1 {[%emt 0:03:16]} 20. Rxe1 {[%emt 0:00:02]} Re8 {[%emt 0:05:04]} 21. Rxe8 {
[%emt 0:00:13]} Bxe8 {[%emt 0:00:05]} 22. b4 {[%emt 0:02:53]} Bd7 {[%emt 0:00:
00]} 23. Be3 {[%emt 0:00:49]} Be7 {[%emt 0:01:34]} 24. g3 {[%emt 0:00:55]} Bd8
{[%emt 0:02:23]} 25. Bd4 {[%emt 0:04:04]} a5 {[%emt 0:00:58]} 26. a3 {[%emt 0:
00:00]} axb4 {[%emt 0:00:30]} 27. axb4 {[%emt 0:00:02]} Bc7 {[%emt 0:00:43]}
28. Ke3 {[%emt 0:05:05]} Bf5 {[%emt 0:00:23]} 29. Be2 {[%emt 0:00:40]} Ke6 {
[%emt 0:01:31]} 30. Bd1 {[%emt 0:02:01]} Bd6 {[%emt 0:03:18]} 31. Bc5 {[%emt 0:
00:00]} Be5 {[%emt 0:00:34]} 32. Bd4 {[%emt 0:00:08]} Bd6 {[%emt 0:00:04]} 33.
Bc5 {[%emt 0:00:04]} Be5 {[%emt 0:00:06]} 34. Bd4 {[%emt 0:00:07]} Bd6 {
[%emt 0:00:43]} 1/2-1/2

[Event "44th Chess Olympiad Open 2022"]
[Site "Chennai"]
[Date "2022.08.02"]
[Round "5.20"]
[White "Hillarp Persson, Tiger"]
[Black "Gomez, John Paul"]
[Result "1/2-1/2"]
[WhiteElo "2516"]
[BlackElo "2451"]
[Annotator "RC"]
[PlyCount "64"]
[EventDate "2022.??.??"]
[TimeControl "60"]

1. d4 {[%emt 0:00:06]} d5 {[%emt 0:00:11]} 2. c4 {[%emt 0:00:06]} c6 {[%emt 0:
00:00]} 3. Nf3 {[%emt 0:00:03]} Nf6 {[%emt 0:00:09]} 4. e3 {[%emt 0:00:04]} Bf5
{[%emt 0:00:10]} 5. Nc3 {[%emt 0:00:06]} e6 {[%emt 0:00:14]} 6. Nh4 {[%emt 0:
00:00]} Bg6 {[%emt 0:00:12]} 7. Nxg6 {[%emt 0:01:02]} hxg6 {[%emt 0:00:10]} 8.
Qb3 {[%emt 0:08:28]} Qc7 {[%emt 0:01:37]} 9. g3 {[%emt 0:00:05]} Nbd7 {[%emt 0:
00:00]} 10. Bg2 {[%emt 0:00:53]} Be7 {[%emt 0:00:26]} 11. O-O {[%emt 0:02:32]}
O-O {[%emt 0:02:22]} 12. e4 {[%emt 0:05:30]} Nxe4 {[%emt 0:02:06]} 13. Nxe4 {
[%emt 0:00:09]} dxe4 {[%emt 0:00:09]} 14. Bxe4 {[%emt 0:00:08]} b6 {[%emt 0:00:
00]} 15. Bg2 {[%emt 0:31:02]} Rad8 {[%emt 0:04:08]} 16. Bf4 {[%emt 0:03:59]} e5
{[%emt 0:07:29]} 17. Bxe5 {[%emt 0:03:50]} Nxe5 {[%emt 0:00:24]} 18. dxe5 {
[%emt 0:00:06]} Qxe5 {[%emt 0:00:50]} 19. Qc2 {[%emt 0:03:26]} Qf6 {[%emt 0:00:
00]} 20. a3 {[%emt 0:12:13]} a5 {[%emt 0:01:26]} 21. Rab1 {[%emt 0:00:22]} Rd4
{[%emt 0:02:30]} 22. b4 {[%emt 0:02:57]} axb4 {[%emt 0:00:29]} 23. axb4 {
[%emt 0:00:08]} Rfd8 {[%emt 0:00:30]} 24. Qc3 {[%emt 0:01:12]} Qd6 {[%emt 0:00:
00]} 25. c5 {[%emt 0:01:41]} bxc5 {[%emt 0:00:15]} 26. bxc5 {[%emt 0:00:04]}
Qxc5 {[%emt 0:00:24]} 27. Qxc5 {[%emt 0:00:07]} Bxc5 {[%emt 0:00:08]} 28. Bxc6
{[%emt 0:00:56]} Rd2 {[%emt 0:02:17]} 29. Ba4 {[%emt 0:07:10]} Ra8 {[%emt 0:00:
00]} 30. Bb3 {[%emt 0:00:46]} g5 {[%emt 0:00:44]} 31. h3 {[%emt 0:01:49]} g6 {
[%emt 0:02:18]} 32. Kg2 {[%emt 0:00:12]} Kg7 {[%emt 0:00:31]} 1/2-1/2

[Event "44th Chess Olympiad Open 2022"]
[Site "Chennai"]
[Date "2022.08.02"]
[Round "5.20"]
[White "Paragua, Mark"]
[Black "Blomqvist, Erik"]
[Result "1-0"]
[WhiteElo "2461"]
[BlackElo "2521"]
[Annotator "RC"]
[PlyCount "137"]
[EventDate "2022.??.??"]
[TimeControl "60"]

1. e4 {[%emt 0:00:05]} c5 {[%emt 0:00:07]} 2. c3 {[%emt 0:00:15]} d5 {[%emt 0:
00:00]} 3. exd5 {[%emt 0:00:08]} Qxd5 {[%emt 0:00:06]} 4. d4 {[%emt 0:00:07]}
Nf6 {[%emt 0:00:09]} 5. Nf3 {[%emt 0:00:09]} e6 {[%emt 0:00:17]} 6. Na3 {
[%emt 0:00:31]} a6 {[%emt 0:00:24]} 7. Nc4 {[%emt 0:03:12]} Nbd7 {[%emt 0:00:
00]} 8. Ne3 {[%emt 0:00:19]} Qc6 {[%emt 0:04:06]} 9. Be2 {[%emt 0:00:50]} Be7 {
[%emt 0:01:38]} 10. O-O {[%emt 0:04:56]} O-O {[%emt 0:00:17]} 11. a4 {[%emt 0:
00:00]} b6 {[%emt 0:02:38]} 12. Ne5 {[%emt 0:01:51]} Qc7 {[%emt 0:00:25]} 13.
Bf3 {[%emt 0:01:18]} Bb7 {[%emt 0:00:25]} 14. Nxd7 {[%emt 0:03:46]} Qxd7 {
[%emt 0:03:42]} 15. Nc4 {[%emt 0:00:13]} Qc7 {[%emt 0:09:13]} 16. Bf4 {[%emt 0:
00:00]} Qxf4 {[%emt 0:01:05]} 17. Bxb7 {[%emt 0:00:06]} Ra7 {[%emt 0:06:03]}
18. g3 {[%emt 0:02:08]} Qc7 {[%emt 0:04:25]} 19. Bg2 {[%emt 0:01:45]} cxd4 {
[%emt 0:04:05]} 20. Qxd4 {[%emt 0:00:09]} Bc5 {[%emt 0:00:17]} 21. Qd3 {
[%emt 0:01:58]} Rc8 {[%emt 0:12:31]} 22. Nd2 {[%emt 0:02:22]} h5 {[%emt 0:00:
00]} 23. Nb3 {[%emt 0:06:18]} Bf8 {[%emt 0:06:40]} 24. Rad1 {[%emt 0:03:04]}
Qc4 {[%emt 0:09:43]} 25. Qxc4 {[%emt 0:01:34]} Rxc4 {[%emt 0:00:04]} 26. a5 {
[%emt 0:01:06]} b5 {[%emt 0:01:22]} 27. Rd8 {[%emt 0:03:53]} b4 {[%emt 0:04:39]
} 28. Nd2 {[%emt 0:13:21]} Rcc7 {[%emt 0:02:43]} 29. cxb4 {[%emt 0:08:41]} Rd7
{[%emt 0:00:13]} 30. Rxd7 {[%emt 0:00:06]} Nxd7 {[%emt 0:05:54]} 31. Rc1 {
[%emt 0:01:51]} Bxb4 {[%emt 0:01:02]} 32. Rc8+ {[%emt 0:00:11]} Kh7 {[%emt 0:
00:00]} 33. Nc4 {[%emt 0:01:03]} g6 {[%emt 0:07:51]} 34. Bc6 {[%emt 0:00:32]}
Nf6 {[%emt 0:01:23]} 35. b3 {[%emt 0:04:31]} Nd5 {[%emt 0:02:57]} 36. Rb8 {
[%emt 0:09:43]} Bc3 {[%emt 0:00:35]} 37. Kf1 {[%emt 0:01:41]} Kg7 {[%emt 0:00:
00]} 38. Ke2 {[%emt 0:01:53]} Kf6 {[%emt 0:01:11]} 39. Kd3 {[%emt 0:04:22]} Be1
{[%emt 0:00:05]} 40. Ke2 {[%emt 0:00:35]} Bc3 {[%emt 0:00:09]} 41. f4 {[%emt 0:
00:00]} h4 {[%emt 0:07:34]} 42. Kf3 {[%emt 0:07:02]} hxg3 {[%emt 0:00:18]} 43.
hxg3 {[%emt 0:00:07]} g5 {[%emt 0:06:19]} 44. Bxd5 {[%emt 0:01:54]} exd5 {
[%emt 0:00:59]} 45. Ne3 {[%emt 0:00:04]} Bxa5 {[%emt 0:02:41]} 46. b4 {[%emt 0:
00:00]} Bc7 {[%emt 0:02:51]} 47. Nxd5+ {[%emt 0:00:08]} Kg7 {[%emt 0:04:07]}
48. Rc8 {[%emt 0:00:15]} Bd6 {[%emt 0:00:16]} 49. Rc6 {[%emt 0:02:12]} Bf8 {
[%emt 0:01:27]} 50. f5 {[%emt 0:00:30]} a5 {[%emt 0:02:04]} 51. f6+ {[%emt 0:
00:00]} Kh7 {[%emt 0:00:56]} 52. b5 {[%emt 0:02:12]} a4 {[%emt 0:01:16]} 53. b6
{[%emt 0:00:51]} Rd7 {[%emt 0:01:05]} 54. Ke4 {[%emt 0:01:14]} Bd6 {[%emt 0:00:
00]} 55. Rc4 {[%emt 0:05:34]} a3 {[%emt 0:00:28]} 56. Ra4 {[%emt 0:00:05]} Bxg3
{[%emt 0:02:14]} 57. Rxa3 {[%emt 0:02:44]} Bf2 {[%emt 0:00:43]} 58. Rb3 {
[%emt 0:00:50]} Rd8 {[%emt 0:02:16]} 59. b7 {[%emt 0:03:37]} Ba7 {[%emt 0:00:
00]} 60. Ne7 {[%emt 0:01:30]} g4 {[%emt 0:00:30]} 61. Nc6 {[%emt 0:00:57]} Re8+
{[%emt 0:00:59]} 62. Kf5 {[%emt 0:00:31]} Bb8 {[%emt 0:00:28]} 63. Nxb8 {
[%emt 0:00:14]} Rxb8 {[%emt 0:00:08]} 64. Kxg4 {[%emt 0:00:04]} Kg6 {[%emt 0:
00:00]} 65. Rb6 {[%emt 0:00:07]} Kh7 {[%emt 0:00:26]} 66. Kg5 {[%emt 0:00:57]}
Rg8+ {[%emt 0:00:37]} 67. Kf5 {[%emt 0:00:05]} Rb8 {[%emt 0:00:06]} 68. Ke5 {
[%emt 0:00:05]} Kg6 {[%emt 0:00:10]} 69. Ke4 {[%emt 0:01:06]} 1-0

[Event "44th Chess Olympiad Open 2022"]
[Site "Chennai"]
[Date "2022.08.02"]
[Round "5.20"]
[White "Laylo, Darwin"]
[Black "Westerberg, Jonathan"]
[Result "1/2-1/2"]
[WhiteElo "2432"]
[BlackElo "2476"]
[Annotator "RC"]
[PlyCount "70"]
[EventDate "2022.??.??"]
[TimeControl "60"]

1. d4 {[%emt 0:00:13]} d5 {[%emt 0:00:09]} 2. c4 {[%emt 0:00:21]} dxc4 {
[%emt 0:00:07]} 3. e3 {[%emt 0:00:07]} e5 {[%emt 0:00:54]} 4. Bxc4 {[%emt 0:00:
00]} exd4 {[%emt 0:00:49]} 5. exd4 {[%emt 0:00:12]} Bd6 {[%emt 0:00:39]} 6. Nf3
{[%emt 0:00:13]} Nf6 {[%emt 0:00:22]} 7. Qe2+ {[%emt 0:00:47]} Qe7 {[%emt 0:00:
00]} 8. Qxe7+ {[%emt 0:02:36]} Bxe7 {[%emt 0:00:32]} 9. Nc3 {[%emt 0:00:27]} a6
{[%emt 0:01:53]} 10. O-O {[%emt 0:00:19]} O-O {[%emt 0:00:39]} 11. Re1 {
[%emt 0:02:24]} Bd6 {[%emt 0:02:08]} 12. Bg5 {[%emt 0:02:28]} Nbd7 {[%emt 0:00:
00]} 13. Ne5 {[%emt 0:08:07]} Nb6 {[%emt 0:00:55]} 14. Bb3 {[%emt 0:00:09]} Be6
{[%emt 0:00:11]} 15. Bxe6 {[%emt 0:03:11]} fxe6 {[%emt 0:00:05]} 16. Nd3 {
[%emt 0:00:08]} Kf7 {[%emt 0:08:24]} 17. Bxf6 {[%emt 0:10:04]} gxf6 {[%emt 0:
00:00]} 18. Ne4 {[%emt 0:02:47]} Rfe8 {[%emt 0:04:43]} 19. Nec5 {[%emt 0:06:24]
} Rab8 {[%emt 0:11:53]} 20. Re4 {[%emt 0:10:26]} Bxc5 {[%emt 0:08:28]} 21. Nxc5
{[%emt 0:03:43]} Nc4 {[%emt 0:00:32]} 22. Rc1 {[%emt 0:08:44]} Nd6 {[%emt 0:00:
00]} 23. Rh4 {[%emt 0:00:11]} Rh8 {[%emt 0:02:17]} 24. Ne4 {[%emt 0:08:21]} Ne8
{[%emt 0:02:54]} 25. Nc5 {[%emt 0:00:59]} a5 {[%emt 0:05:49]} 26. Re4 {[%emt 0:
00:00]} Nd6 {[%emt 0:00:02]} 27. Ree1 {[%emt 0:00:15]} Rhe8 {[%emt 0:05:30]}
28. Nb3 {[%emt 0:00:07]} c6 {[%emt 0:00:15]} 29. Nxa5 {[%emt 0:00:35]} Ra8 {
[%emt 0:00:13]} 30. b4 {[%emt 0:00:27]} Ra7 {[%emt 0:02:02]} 31. Re3 {[%emt 0:
00:00]} b6 {[%emt 0:08:40]} 32. Rh3 {[%emt 0:10:57]} Kg6 {[%emt 0:00:33]} 33.
Rg3+ {[%emt 0:02:22]} Kf7 {[%emt 0:00:09]} 34. Rh3 {[%emt 0:00:04]} Kg6 {
[%emt 0:00:04]} 35. Rg3+ {[%emt 0:09:38]} Kf7 {[%emt 0:00:08]} 1/2-1/2